[Event "37th Belgrade Trophy 2024"]
[Site "Belgrade"]
[Date "2024.11.25"]
[Round "3.5"]
[White "Xie, Jianjun"]
[Black "Karisik, Nenad"]
[Result "1-0"]
[ECO "C84"]
[WhiteElo "2361"]
[BlackElo "2119"]
[Annotator "TA"]
[PlyCount "61"]
[EventDate "2024.11.23"]
[EventCountry "SRB"]
[SourceTitle "playchess.com"]
[Source "ChessBase"]
[SourceQuality "1"]
[TimeControl "40/5400+30:900+30"]

{[%evp 20,61,54,72,69,63,83,79,83,77,85,87,90,108,112,94,119,129,141,146,241,245,231,124,186,160,453,404,416,256,361,264,456,444,504,608,560,540,682,661,712,687,687,672]} 1. e4 {[%emt 0:00:20]} e5 {[%emt 0:00:05]} 2. Nf3 {[%emt 0:00:10]} Nc6 {[%emt 0:00:04]} 3. Bb5 {[%emt 0:00:39]} a6 {[%emt 0:00:22]} 4. Ba4 {[%emt 0:00:07]} Nf6 {[%emt 0:00:16]} 5. d4 {[%emt 0:01:32]} exd4 {[%emt 0:02:56]} 6. O-O {[%emt 0:00:13]} Be7 {[%emt 0:01:04]} 7. Re1 {[%emt 0:00:13]} O-O {[%emt 0:02:45]} 8. e5 {[%emt 0:00:09]} Ne8 {[%emt 0:02:30]} 9. c3 {[%emt 0:00:30]} b5 {[%emt 0:06:10]} 10. Bb3 {[%emt 0:15:33][%cal Ba4b3,Bb3d5,Bd5c6][%mdl 32]} d5 {[%emt 0:03:05]} 11. cxd4 {[%emt 0:01:57]} Bg4 {[%emt 0:04:31]} 12. Nc3 {[%emt 0:00:43]} Bxf3 {[%emt 0:02:30]} 13. gxf3 {[%emt 0:14:31]} Bb4 {[%emt 0:03:25] White is better.} 14. Bxd5 {[%emt 0:10:33]} Bxc3 {[%emt 0:02:18]} 15. Bxc6 {[%emt 0:00:02]} Bxe1 {[%emt 0:00:33]} 16. Qxe1 {[%emt 0:00:10]} Rb8 {[%emt 0:03:50] Black is weak on the dark squares} 17. Qe4 {[%emt 0:10:37][%mdl 1024] White has strong compensation.} Rb6 {[%emt 0:04:34][%cal Ob6c6]} 18. Bd2 {[%emt 0:12:07]} b4 {[%emt 0:01:42][%cal Ob6c6]} 19. Rc1 {[%emt 0:00:35] White is much more active. The black rooks are passive.} g6 {[%emt 0:02:37]} (19... f6 $16) 20. d5 $18 {[%emt 0:01:08][%cal Bd4d5,Bd5d6][%mdl 32]} Ng7 {[%emt 0:08:48] [#]} 21. Kh1 {[%emt 0:01:14]} (21. Bxb4 $2 Qg5+ 22. Qg4 Qxc1+ $19) (21. h4 $1 $18) 21... Qe7 {[%emt 0:09:22]} (21... Nf5 $16 22. Rc4 (22. Bxb4 Ne7 $18) 22... a5) 22. Be3 {[%emt 0:02:05] And now d6 would win. This pair of bishops is nice.} f5 $2 {[%emt 0:00:42]} (22... Rbb8 $16 {is a better defense.} 23. h3 b3) 23. d6 {[%emt 0:07:00]} Qf7 {[%emt 0:06:54]} 24. Qc4 {[%emt 0:01:42]} Rxc6 {[%emt 0:01:59]} (24... Qxc4 $142 25. Rxc4 Rxc6 26. Rxc6 cxd6 27. exd6 (27. Rxa6 dxe5 28. Bc5 Rb8 $14) 27... Rd8) 25. Qxf7+ {[%emt 0:01:01]} Kxf7 $2 {[%emt 0:01:39] [#]} (25... Rxf7 {was called for.} 26. Rxc6 cxd6 27. exd6 (27. Rxa6 dxe5 28. Ra8+ Rf8 $18) 27... Rd7 28. Rxa6 Kf7) 26. Rxc6 {[%emt 0:00:06] KRB-KRN. White is clearly winning.} Ne6 {[%emt 0:00:36]} 27. dxc7 {[%emt 0:01:49]} Rc8 {[%emt 0:00:06]} 28. Bb6 {[%emt 0:00:04]} Ke7 {[%emt 0:00:27]} 29. Ba5 {[%emt 0:00:23][%csl LRa6,LRb4]} Kd7 {[%emt 0:00:24]} 30. Rd6+ {[%emt 0:00:15]} Ke7 {[%emt 0:00:06]} 31. Rxa6 {[%emt 0:01:53] Weighted Error Value: White=0.33/Black=0.70.  Loses game:     	---       	Black=1      Mistake:       	White=1     	Black=4      Inaccurate:     	White=1     	---        OK:         	White=9     	Black=5      Best:        	White=2     	Black=1} 1-0

[Event "37th Belgrade Trophy 2024"]
[Site "Belgrade"]
[Date "2024.11.25"]
[Round "3.6"]
[White "Jandric, Damjan"]
[Black "Ivanovic, Marko"]
[Result "1/2-1/2"]
[ECO "B11"]
[WhiteElo "2110"]
[BlackElo "2297"]
[Annotator "RC"]
[PlyCount "106"]
[EventDate "2024.11.23"]
[EventCountry "SRB"]
[SourceTitle "playchess.com"]
[Source "ChessBase"]
[SourceQuality "1"]
[TimeControl "40/5400+30:900+30"]

1. e4 {[%emt 0:00:05]} c6 {[%emt 0:15:13]} 2. Nf3 {[%emt 0:00:08]} d5 {[%emt 0:01:10]} 3. Nc3 {[%emt 0:00:12]} Bg4 {[%emt 0:00:22]} 4. h3 {[%emt 0:00:05]} Bxf3 {[%emt 0:00:07]} 5. Qxf3 {[%emt 0:00:02]} e6 {[%emt 0:00:33]} 6. g3 {[%emt 0:00:12]} Nf6 {[%emt 0:00:42]} 7. Bg2 {[%emt 0:00:33]} d4 {[%emt 0:02:19]} 8. Ne2 {[%emt 0:00:44]} c5 {[%emt 0:00:21]} 9. e5 {[%emt 0:16:29]} Nd5 {[%emt 0:05:57]} 10. c4 {[%emt 0:04:04]} Nb6 {[%emt 0:03:46]} 11. d3 {[%emt 0:01:09]} Nc6 {[%emt 0:00:09]} 12. Qe4 {[%emt 0:00:37]} Be7 {[%emt 0:05:35]} 13. O-O {[%emt 0:00:21]} Nd7 {[%emt 0:15:25]} 14. f4 {[%emt 0:00:26]} Qa5 {[%emt 0:00:07]} 15. Rd1 {[%emt 0:02:35]} O-O-O {[%emt 0:05:14]} 16. Bd2 {[%emt 0:00:19]} Qc7 {[%emt 0:00:02]} 17. a3 {[%emt 0:02:15]} g5 {[%emt 0:01:58]} 18. b4 {[%emt 0:01:34]} gxf4 {[%emt 0:00:04]} 19. gxf4 {[%emt 0:00:18]} Rdg8 {[%emt 0:00:52]} 20. Kh2 {[%emt 0:03:28]} Rg6 {[%emt 0:00:40]} 21. b5 {[%emt 0:01:01]} Nd8 {[%emt 0:00:09]} 22. a4 {[%emt 0:06:02]} Rhg8 {[%emt 0:05:04]} 23. Rg1 {[%emt 0:05:11]} f6 {[%emt 0:00:27]} 24. exf6 {[%emt 0:04:33]} Nxf6 {[%emt 0:00:30]} 25. Qf3 {[%emt 0:00:10]} Bd6 {[%emt 0:00:49]} 26. a5 {[%emt 0:10:08]} Qf7 {[%emt 0:02:06]} 27. a6 {[%emt 0:03:26]} b6 {[%emt 0:00:18]} 28. Kh1 {[%emt 0:02:04]} Ne8 {[%emt 0:05:52]} 29. Be1 {[%emt 0:05:44]} Ng7 {[%emt 0:00:38]} 30. Bh4 {[%emt 0:01:26]} Qc7 {[%emt 0:06:38]} 31. Qa8+ {[%emt 0:07:07]} Qb8 {[%emt 0:00:44]} 32. Qe4 {[%emt 0:11:34]} Nf5 {[%emt 0:00:12]} 33. Bxd8 {[%emt 0:00:28]} Kxd8 {[%emt 0:00:05]} 34. Bf3 {[%emt 0:00:33]} Ke7 {[%emt 0:01:50]} 35. Bg4 {[%emt 0:03:31]} Ne3 {[%emt 0:02:22]} 36. Bh5 {[%emt 0:01:08]} Rh6 {[%emt 0:03:35]} 37. Rxg8 {[%emt 0:01:33]} Qxg8 {[%emt 0:00:06]} 38. Rg1 {[%emt 0:00:14]} Qf8 {[%emt 0:02:43]} 39. Rg5 {[%emt 0:00:13]} Nf5 {[%emt 0:07:06]} 40. Kg2 {[%emt 0:00:00]} Bc7 {[%emt 0:00:00]} 41. Qc6 {[%emt 0:09:03]} Bd6 {[%emt 0:09:58]} 42. Kf2 {[%emt 0:02:28]} Qb8 {[%emt 0:06:39]} 43. Qe4 {[%emt 0:00:53]} Rf6 {[%emt 0:00:04]} 44. Bg4 {[%emt 0:01:28]} Nh6 {[%emt 0:01:29]} 45. Rg7+ {[%emt 0:01:23]} Nf7 {[%emt 0:00:19]} 46. f5 {[%emt 0:04:24]} h5 {[%emt 0:01:28]} 47. Bxh5 {[%emt 0:00:50]} Rxf5+ {[%emt 0:00:01]} 48. Bf3 {[%emt 0:00:14]} Be5 {[%emt 0:04:12]} 49. Rh7 {[%emt 0:01:35]} Qg8 {[%emt 0:01:01]} 50. Rh5 {[%emt 0:04:31]} Ng5 {[%emt 0:00:05]} 51. Qb7+ {[%emt 0:00:48]} Kd6 {[%emt 0:03:03]} 52. Qc6+ {[%emt 0:00:28]} Ke7 {[%emt 0:00:01]} 53. Qb7+ {[%emt 0:00:26]} Kf8 {[%emt 0:01:50]} 1/2-1/2

[Event "37th Belgrade Trophy 2024"]
[Site "Belgrade"]
[Date "2024.11.25"]
[Round "3.8"]
[White "Ughuzov, Ravan"]
[Black "Petrovic, Aleksa"]
[Result "1-0"]
[ECO "C41"]
[WhiteElo "2047"]
[BlackElo "2262"]
[Annotator "RC"]
[PlyCount "83"]
[EventDate "2024.11.23"]
[EventCountry "SRB"]
[SourceTitle "playchess.com"]
[Source "ChessBase"]
[SourceQuality "1"]
[TimeControl "40/5400+30:900+30"]

1. e4 {[%emt 0:00:04]} e5 {[%emt 0:00:18]} 2. Nf3 {[%emt 0:00:12]} d6 {[%emt 0:00:07]} 3. Nc3 {[%emt 0:01:42]} Nf6 {[%emt 0:01:30]} 4. d4 {[%emt 0:00:10]} exd4 {[%emt 0:00:23]} 5. Nxd4 {[%emt 0:00:24]} Be7 {[%emt 0:00:06]} 6. Be2 {[%emt 0:02:03]} O-O {[%emt 0:00:07]} 7. O-O {[%emt 0:00:07]} Re8 {[%emt 0:00:26]} 8. f4 {[%emt 0:01:48]} c5 {[%emt 0:12:31]} 9. Nb3 {[%emt 0:11:37]} Nc6 {[%emt 0:02:49]} 10. Be3 {[%emt 0:06:42]} Be6 {[%emt 0:07:14]} 11. Bf3 {[%emt 0:06:58]} Qd7 {[%emt 0:02:40]} 12. h3 {[%emt 0:01:57]} Bc4 {[%emt 0:06:54]} 13. Re1 {[%emt 0:01:15]} h6 {[%emt 0:04:38]} 14. Nd2 {[%emt 0:14:29]} Ba6 {[%emt 0:00:48]} 15. Nf1 {[%emt 0:00:33]} Bd8 {[%emt 0:04:02]} 16. Ng3 {[%emt 0:09:08]} Nd4 {[%emt 0:03:22]} 17. Bxd4 {[%emt 0:05:27]} cxd4 {[%emt 0:00:06]} 18. Nce2 {[%emt 0:00:13]} Ba5 {[%emt 0:02:16]} 19. Nxd4 {[%emt 0:05:17]} Bxe1 {[%emt 0:01:04]} 20. Qxe1 {[%emt 0:00:01]} g6 {[%emt 0:10:00]} 21. Qd2 {[%emt 0:02:12]} Qe7 {[%emt 0:03:11]} 22. Re1 {[%emt 0:01:19]} Rad8 {[%emt 0:02:08]} 23. Qf2 {[%emt 0:02:59]} Nh7 {[%emt 0:02:11]} 24. Qd2 {[%emt 0:04:56]} Qf6 {[%emt 0:02:32]} 25. Nh1 {[%emt 0:05:49]} Nf8 {[%emt 0:01:59]} 26. Nf2 {[%emt 0:00:30]} Ne6 {[%emt 0:09:02]} 27. Nxe6 {[%emt 0:00:04]} Rxe6 {[%emt 0:00:07]} 28. Ng4 {[%emt 0:01:52]} Qh4 {[%emt 0:00:21]} 29. Kh2 {[%emt 0:00:44]} h5 {[%emt 0:01:37]} 30. g3 {[%emt 0:00:56]} Qe7 {[%emt 0:00:15]} 31. Ne3 {[%emt 0:00:22]} Qf6 {[%emt 0:06:44]} 32. c3 {[%emt 0:00:26]} Qg7 {[%emt 0:04:26]} 33. g4 {[%emt 0:05:15]} hxg4 {[%emt 0:00:19]} 34. hxg4 {[%emt 0:00:04]} Qh6+ {[%emt 0:05:08]} 35. Kg3 {[%emt 0:00:09]} g5 {[%emt 0:00:04]} 36. Nf5 {[%emt 0:01:29]} gxf4+ {[%emt 0:00:09]} 37. Kg2 {[%emt 0:00:04]} Qg5 {[%emt 0:00:29]} 38. Rh1 {[%emt 0:00:26]} d5 {[%emt 0:04:09]} 39. Rh5 {[%emt 0:01:34]} Qf6 {[%emt 0:00:06]} 40. exd5 {[%emt 0:00:00]} Ree8 {[%emt 0:00:00]} 41. Qxf4 {[%emt 0:00:59]} Kf8 {[%emt 0:04:09]} 42. Rh6 {[%emt 0:00:26]} 1-0

[Event "37th Belgrade Trophy 2024"]
[Site "Belgrade"]
[Date "2024.11.25"]
[Round "3.9"]
[White "Martic, Ivan"]
[Black "Dorokhina, Elizaveta"]
[Result "1-0"]
[ECO "C62"]
[WhiteElo "2261"]
[BlackElo "2064"]
[Annotator "RC"]
[PlyCount "101"]
[EventDate "2024.11.23"]
[EventCountry "SRB"]
[SourceTitle "playchess.com"]
[Source "ChessBase"]
[SourceQuality "1"]
[TimeControl "40/5400+30:900+30"]

1. e4 {[%emt 0:12:13]} e5 {[%emt 0:00:09]} 2. Nf3 {[%emt 0:00:05]} Nc6 {[%emt 0:00:07]} 3. Nc3 {[%emt 0:00:08]} Nf6 {[%emt 0:00:44]} 4. Bb5 {[%emt 0:00:21]} d6 {[%emt 0:02:00]} 5. d4 {[%emt 0:00:13]} exd4 {[%emt 0:01:38]} 6. Nxd4 {[%emt 0:00:12]} Bd7 {[%emt 0:00:19]} 7. O-O {[%emt 0:01:09]} Nxd4 {[%emt 0:03:05]} 8. Bxd7+ {[%emt 0:00:18]} Qxd7 {[%emt 0:00:49]} 9. Qxd4 {[%emt 0:00:07]} Be7 {[%emt 0:00:07]} 10. Rd1 {[%emt 0:01:19]} O-O {[%emt 0:03:51]} 11. e5 {[%emt 0:01:23]} Ne8 {[%emt 0:01:04]} 12. Bf4 {[%emt 0:01:14]} Qe6 {[%emt 0:14:37]} 13. Re1 {[%emt 0:12:21]} dxe5 {[%emt 0:04:31]} 14. Bxe5 {[%emt 0:01:48]} Bf6 {[%emt 0:01:35]} 15. Nd5 {[%emt 0:05:16]} Bxe5 {[%emt 0:04:42]} 16. Rxe5 {[%emt 0:00:10]} Qd6 {[%emt 0:00:17]} 17. Rd1 {[%emt 0:02:26]} Kh8 {[%emt 0:04:35]} 18. Rd3 {[%emt 0:12:31]} Nf6 {[%emt 0:13:09]} 19. Nxf6 {[%emt 0:12:51]} Qxf6 {[%emt 0:01:53]} 20. Qe4 {[%emt 0:06:29]} Rad8 {[%emt 0:05:42]} 21. Rxd8 {[%emt 0:00:39]} Qxd8 {[%emt 0:00:15]} 22. g3 {[%emt 0:01:08]} b6 {[%emt 0:17:20]} 23. Qc6 {[%emt 0:04:58]} Kg8 {[%emt 0:01:02]} 24. Rd5 {[%emt 0:04:45]} Qa8 {[%emt 0:00:54]} 25. Qxa8 {[%emt 0:04:38]} Rxa8 {[%emt 0:00:07]} 26. Rd7 {[%emt 0:00:07]} Rc8 {[%emt 0:00:09]} 27. Kg2 {[%emt 0:02:42]} Kf8 {[%emt 0:00:08]} 28. Kf3 {[%emt 0:00:08]} Ke8 {[%emt 0:00:07]} 29. Rd3 {[%emt 0:00:06]} Ke7 {[%emt 0:03:00]} 30. h4 {[%emt 0:00:35]} h5 {[%emt 0:03:17]} 31. Kf4 {[%emt 0:00:23]} Kf6 {[%emt 0:00:19]} 32. Rc3 {[%emt 0:02:29]} c5 {[%emt 0:02:38]} 33. Rd3 {[%emt 0:01:07]} Rc6 {[%emt 0:02:22]} 34. Rd7 {[%emt 0:03:23]} a6 {[%emt 0:00:22]} 35. Ke3 {[%emt 0:00:20]} b5 {[%emt 0:01:43]} 36. b3 {[%emt 0:01:21]} Re6+ {[%emt 0:01:07]} 37. Kd3 {[%emt 0:00:23]} Re7 {[%emt 0:00:57]} 38. Rxe7 {[%emt 0:01:46]} Kxe7 {[%emt 0:00:05]} 39. Ke4 {[%emt 0:00:28]} Ke6 {[%emt 0:00:06]} 40. c3 {[%emt 0:00:00]} a5 {[%emt 0:00:00]} 41. c4 {[%emt 0:04:37]} f5+ {[%emt 0:15:40]} 42. Kf4 {[%emt 0:00:14]} bxc4 {[%emt 0:00:07]} 43. bxc4 {[%emt 0:00:07]} Kf6 {[%emt 0:00:17]} 44. a4 {[%emt 0:04:01]} g6 {[%emt 0:00:09]} 45. f3 {[%emt 0:00:54]} Ke6 {[%emt 0:00:20]} 46. Kg5 {[%emt 0:01:06]} Kf7 {[%emt 0:05:52]} 47. Kh6 {[%emt 0:01:06]} f4 {[%emt 0:01:14]} 48. gxf4 {[%emt 0:00:08]} Kf6 {[%emt 0:00:03]} 49. Kh7 {[%emt 0:00:10]} Kf7 {[%emt 0:00:58]} 50. f5 {[%emt 0:00:19]} gxf5 {[%emt 0:02:15]} 51. f4 {[%emt 0:00:16]} 1-0

[Event "37th Belgrade Trophy 2024"]
[Site "Belgrade"]
[Date "2024.11.25"]
[Round "3.10"]
[White "Vulinovic, Radivoje"]
[Black "Gevorgyan, David Sh."]
[Result "1/2-1/2"]
[ECO "A04"]
[WhiteElo "2040"]
[BlackElo "2247"]
[Annotator "RC"]
[PlyCount "68"]
[EventDate "2024.11.23"]
[EventCountry "SRB"]
[SourceTitle "playchess.com"]
[Source "ChessBase"]
[SourceQuality "1"]
[TimeControl "40/5400+30:900+30"]

1. Nf3 {[%emt 0:10:23]} Nf6 {[%emt 0:00:05]} 2. g3 {[%emt 0:00:17]} c5 {[%emt 0:00:16]} 3. Bg2 {[%emt 0:00:19]} Nc6 {[%emt 0:00:09]} 4. d4 {[%emt 0:00:14]} cxd4 {[%emt 0:00:09]} 5. Nxd4 {[%emt 0:00:06]} e5 {[%emt 0:00:04]} 6. Nxc6 {[%emt 0:04:06]} dxc6 {[%emt 0:00:15]} 7. Qxd8+ {[%emt 0:00:12]} Kxd8 {[%emt 0:00:07]} 8. Nc3 {[%emt 0:00:29]} Kc7 {[%emt 0:02:30]} 9. Bd2 {[%emt 0:00:43]} Bc5 {[%emt 0:06:36]} 10. h3 {[%emt 0:03:23]} Be6 {[%emt 0:07:26]} 11. Rf1 {[%emt 0:00:33]} Rad8 {[%emt 0:05:03]} 12. O-O-O {[%emt 0:03:02]} b5 {[%emt 0:08:58]} 13. Kb1 {[%emt 0:03:53]} Kb6 {[%emt 0:07:49]} 14. Bc1 {[%emt 0:02:17]} Bd4 {[%emt 0:07:41]} 15. Bd2 {[%emt 0:02:13]} Rd7 {[%emt 0:16:42]} 16. e3 {[%emt 0:00:41]} Bc5 {[%emt 0:00:24]} 17. Bc1 {[%emt 0:00:05]} Rhd8 {[%emt 0:00:28]} 18. Rxd7 {[%emt 0:00:11]} Rxd7 {[%emt 0:00:10]} 19. Rd1 {[%emt 0:00:15]} Rxd1 {[%emt 0:03:36]} 20. Nxd1 {[%emt 0:00:06]} Bd5 {[%emt 0:00:51]} 21. f3 {[%emt 0:07:33]} a5 {[%emt 0:10:46]} 22. g4 {[%emt 0:01:25]} h5 {[%emt 0:02:07]} 23. Nc3 {[%emt 0:01:03]} hxg4 {[%emt 0:08:40]} 24. hxg4 {[%emt 0:01:41]} e4 {[%emt 0:03:54]} 25. Nxd5+ {[%emt 0:12:55]} cxd5 {[%emt 0:06:07]} 26. c3 {[%emt 0:00:43]} Kc6 {[%emt 0:01:04]} 27. Kc2 {[%emt 0:00:46]} Kd6 {[%emt 0:01:08]} 28. Kd2 {[%emt 0:01:55]} exf3 {[%emt 0:00:25]} 29. Bxf3 {[%emt 0:00:08]} Ne4+ {[%emt 0:00:06]} 30. Kd3 {[%emt 0:01:08]} Nf2+ {[%emt 0:00:20]} 31. Ke2 {[%emt 0:00:08]} Ne4 {[%emt 0:00:03]} 32. Kd3 {[%emt 0:00:22]} Nf2+ {[%emt 0:01:41]} 33. Ke2 {[%emt 0:00:26]} Ne4 {[%emt 0:00:05]} 34. Kd3 {[%emt 0:02:48]} Nf2+ {[%emt 0:01:45]} 1/2-1/2